[Event "Early-Titled-Tuesday-Blitz-February-06-2024"]
[Site "Chess.com"]
[Date "2024.02.06"]
[Round "7"]
[White "only_strong_moves"]
[Black "ural58"]
[Result "1-0"]
[WhiteElo "2668"]
[BlackElo "2482"]
[TimeControl "180+1"]
[EndTime "9:18:18 PST"]
[Termination "only_strong_moves won on time"]

1. d4 {[%clk 0:02:56.2]} 1... d5 {[%clk 0:02:12.4]} 2. Nc3 {[%clk 0:02:51.8]}
2... Nf6 {[%clk 0:02:10.9]} 3. Bf4 {[%clk 0:02:52.3]} 3... a6 {[%clk 0:02:10.5]}
4. e3 {[%clk 0:02:52.5]} 4... e6 {[%clk 0:02:10.4]} 5. Nf3 {[%clk 0:02:52.6]}
5... c5 {[%clk 0:02:10.1]} 6. Be2 {[%clk 0:02:51.6]} 6... Nbd7 {[%clk
0:02:06.6]} 7. Ne5 {[%clk 0:02:51.3]} 7... Nxe5 {[%clk 0:02:05.2]} 8. Bxe5
{[%clk 0:02:50.5]} 8... Nd7 {[%clk 0:02:04.9]} 9. Bg3 {[%clk 0:02:49.9]} 9... b5
{[%clk 0:02:01.3]} 10. Bf3 {[%clk 0:02:46.5]} 10... b4 {[%clk 0:01:57.7]} 11.
Ne2 {[%clk 0:02:36.8]} 11... a5 {[%clk 0:01:57.7]} 12. O-O {[%clk 0:02:34.7]}
12... Ba6 {[%clk 0:01:57.5]} 13. Re1 {[%clk 0:02:34.9]} 13... Nf6 {[%clk
0:01:21.1]} 14. Bh4 {[%clk 0:02:16.8]} 14... Be7 {[%clk 0:01:20.5]} 15. dxc5
{[%clk 0:02:16]} 15... Bxc5 {[%clk 0:01:18.8]} 16. Nd4 {[%clk 0:02:15.9]} 16...
O-O {[%clk 0:01:17]} 17. h3 {[%clk 0:01:45.6]} 17... Rc8 {[%clk 0:01:14.9]} 18.
Be2 {[%clk 0:01:44.6]} 18... Bxe2 {[%clk 0:01:14]} 19. Nxe2 {[%clk 0:01:44.3]}
19... Be7 {[%clk 0:01:13.6]} 20. c3 {[%clk 0:01:43.1]} 20... Ne4 {[%clk
0:01:11.3]} 21. Bxe7 {[%clk 0:01:43.6]} 21... Qxe7 {[%clk 0:01:11.5]} 22. f3
{[%clk 0:01:41.6]} 22... Nd6 {[%clk 0:00:54.7]} 23. cxb4 {[%clk 0:01:36.3]}
23... axb4 {[%clk 0:00:53.2]} 24. b3 {[%clk 0:01:35.1]} 24... Qa7 {[%clk
0:00:50.6]} 25. Qd3 {[%clk 0:01:34.3]} 25... Nf5 {[%clk 0:00:49.3]} 26. Nd4
{[%clk 0:01:16.4]} 26... Rc3 {[%clk 0:00:48]} 27. Qd2 {[%clk 0:01:16.6]} 27...
Nxd4 {[%clk 0:00:47.6]} 28. exd4 {[%clk 0:01:17.5]} 28... Rfc8 {[%clk
0:00:46.6]} 29. Kh1 {[%clk 0:01:07.7]} 29... h6 {[%clk 0:00:46.5]} 30. f4 {[%clk
0:01:03.8]} 30... Rc2 {[%clk 0:00:45.5]} 31. Qxb4 {[%clk 0:01:03.5]} 31... Rxa2
{[%clk 0:00:41.7]} 32. Rxa2 {[%clk 0:01:01.5]} 32... Qxa2 {[%clk 0:00:41.5]} 33.
f5 {[%clk 0:01:00.9]} 33... exf5 {[%clk 0:00:40.3]} 34. Qb7 {[%clk 0:01:00.5]}
34... Qa8 {[%clk 0:00:32.4]} 35. Qd7 {[%clk 0:01:00.6]} 35... f4 {[%clk
0:00:24.5]} 36. Qf5 {[%clk 0:00:56.5]} 36... Rb8 {[%clk 0:00:18.6]} 37. Re7
{[%clk 0:00:55.1]} 37... Rf8 {[%clk 0:00:16.3]} 38. Qxf4 {[%clk 0:00:54.6]}
38... Qa1+ {[%clk 0:00:14.9]} 39. Kh2 {[%clk 0:00:55.3]} 39... Qd1 {[%clk
0:00:15]} 40. Qe3 {[%clk 0:00:44.6]} 40... Qh5 {[%clk 0:00:12.5]} 41. Re5 {[%clk
0:00:43.4]} 41... Qg6 {[%clk 0:00:12.2]} 42. Rxd5 {[%clk 0:00:42.6]} 42... Kh7
{[%clk 0:00:10.7]} 43. b4 {[%clk 0:00:41.6]} 43... f5 {[%clk 0:00:10.9]} 44. Qf4
{[%clk 0:00:38.9]} 44... Qb6 {[%clk 0:00:09.2]} 45. Rxf5 {[%clk 0:00:37.4]}
45... Rb8 {[%clk 0:00:08.2]} 46. b5 {[%clk 0:00:34.4]} 46... Qd8 {[%clk
0:00:07.8]} 47. Qe4 {[%clk 0:00:34.3]} 47... Kh8 {[%clk 0:00:07.4]} 48. Qe5
{[%clk 0:00:33.4]} 48... Ra8 {[%clk 0:00:06.5]} 49. Rf7 {[%clk 0:00:33.4]} 49...
Qg8 {[%clk 0:00:06.3]} 50. Re7 {[%clk 0:00:31.2]} 50... Rf8 {[%clk 0:00:04.6]}
51. Re6 {[%clk 0:00:31.5]} 51... Kh7 {[%clk 0:00:03.8]} 52. b6 {[%clk
0:00:31.1]} 52... Qf7 {[%clk 0:00:03.8]} 53. Re7 {[%clk 0:00:30.3]} 53... Qg6
{[%clk 0:00:03.9]} 54. b7 {[%clk 0:00:29.3]} 54... Rf2 {[%clk 0:00:03.9]} 55.
Rxg7+ {[%clk 0:00:29.9]} 55... Qxg7 {[%clk 0:00:03.5]} 56. Qxg7+ {[%clk
0:00:30.8]} 56... Kxg7 {[%clk 0:00:03.7]} 57. b8=Q {[%clk 0:00:31.7]} 1-0

[Event "Early-Titled-Tuesday-Blitz-February-06-2024"]
[Site "Chess.com"]
[Date "2024.02.06"]
[Round "7"]
[White "Njal28"]
[Black "GMBenjaminBok"]
[Result "0-1"]
[WhiteElo "3076"]
[BlackElo "2984"]
[TimeControl "180+1"]
[EndTime "9:18:20 PST"]
[Termination "GMBenjaminBok won by resignation"]

1. d4 {[%clk 0:02:55.6]} 1... Nf6 {[%clk 0:03:00.1]} 2. c4 {[%clk 0:02:54.5]}
2... e6 {[%clk 0:03:00.5]} 3. Nc3 {[%clk 0:02:53.8]} 3... Bb4 {[%clk 0:03:01.1]}
4. e3 {[%clk 0:02:53.5]} 4... O-O {[%clk 0:03:00.8]} 5. a3 {[%clk 0:02:53.9]}
5... Bxc3+ {[%clk 0:03:01.4]} 6. bxc3 {[%clk 0:02:54.8]} 6... d6 {[%clk
0:03:01.9]} 7. Ne2 {[%clk 0:02:55.3]} 7... c5 {[%clk 0:03:00.3]} 8. Ng3 {[%clk
0:02:55.7]} 8... Nc6 {[%clk 0:02:59.7]} 9. Ra2 {[%clk 0:02:52.8]} 9... b6 {[%clk
0:02:53.9]} 10. e4 {[%clk 0:02:53]} 10... Ba6 {[%clk 0:02:50.5]} 11. Bg5 {[%clk
0:02:53]} 11... h6 {[%clk 0:02:48.8]} 12. h4 {[%clk 0:02:53.3]} 12... cxd4
{[%clk 0:02:43.2]} 13. cxd4 {[%clk 0:02:52.5]} 13... hxg5 {[%clk 0:02:34.1]} 14.
hxg5 {[%clk 0:02:52.6]} 14... g6 {[%clk 0:02:34.7]} 15. Rd2 {[%clk 0:02:52.2]}
15... Nh7 {[%clk 0:01:56.5]} 16. f4 {[%clk 0:02:50.9]} 16... Nxg5 {[%clk
0:01:11.5]} 17. Qg4 {[%clk 0:02:47]} 17... Kg7 {[%clk 0:01:07.2]} 18. fxg5
{[%clk 0:01:39]} 18... Rh8 {[%clk 0:00:58]} 19. Rxh8 {[%clk 0:01:39.6]} 19...
Qxh8 {[%clk 0:00:57.7]} 20. Qf4 {[%clk 0:01:39.9]} 20... Qd8 {[%clk 0:00:49.5]}
21. e5 {[%clk 0:01:30]} 21... dxe5 {[%clk 0:00:44.8]} 22. dxe5 {[%clk
0:01:30.9]} 22... Qe7 {[%clk 0:00:44.6]} 23. Ne4 {[%clk 0:01:25.9]} 23... Qxa3
{[%clk 0:00:25.5]} 24. Nd6 {[%clk 0:00:52.9]} 24... Rf8 {[%clk 0:00:10]} 25. Be2
{[%clk 0:00:22.2]} 25... Qa1+ {[%clk 0:00:09.6]} 26. Kf2 {[%clk 0:00:22.8]}
26... Qxe5 {[%clk 0:00:10.2]} 27. Qxe5+ {[%clk 0:00:23]} 27... Nxe5 {[%clk
0:00:10.1]} 28. Ra2 {[%clk 0:00:23.9]} 28... Rd8 {[%clk 0:00:08.5]} 29. Nxf7
{[%clk 0:00:17.8]} 29... Kxf7 {[%clk 0:00:06]} 30. Rxa6 {[%clk 0:00:18.3]} 30...
Rd7 {[%clk 0:00:06.3]} 31. Ke3 {[%clk 0:00:18.2]} 31... Rc7 {[%clk 0:00:04.2]}
32. Ra1 {[%clk 0:00:18.9]} 32... Ke7 {[%clk 0:00:03.9]} 33. Kd4 {[%clk
0:00:18.2]} 33... Kd6 {[%clk 0:00:04.4]} 34. Rf1 {[%clk 0:00:17.4]} 34... Nc6+
{[%clk 0:00:04.1]} 35. Ke4 {[%clk 0:00:17.7]} 35... Ne5 {[%clk 0:00:03.5]} 36.
Kd4 {[%clk 0:00:18]} 36... Rf7 {[%clk 0:00:03.7]} 37. Rc1 {[%clk 0:00:17.1]}
37... Rf2 {[%clk 0:00:03.5]} 38. Bf1 {[%clk 0:00:12.1]} 38... Rf4+ {[%clk
0:00:03.7]} 39. Ke3 {[%clk 0:00:12.5]} 39... Rg4 {[%clk 0:00:04.5]} 40. Ra1
{[%clk 0:00:10.3]} 40... a5 {[%clk 0:00:04.5]} 41. Rb1 {[%clk 0:00:10.5]} 41...
Nxc4+ {[%clk 0:00:04.8]} 42. Bxc4 {[%clk 0:00:10.1]} 42... Rxc4 {[%clk
0:00:05.7]} 43. Rb2 {[%clk 0:00:10.8]} 43... Kc5 {[%clk 0:00:05.1]} 44. Kf3
{[%clk 0:00:08.6]} 44... b5 {[%clk 0:00:05]} 45. Re2 {[%clk 0:00:09.1]} 45...
Kd5 {[%clk 0:00:04.7]} 46. Rd2+ {[%clk 0:00:07.9]} 46... Rd4 {[%clk 0:00:05]}
47. Rc2 {[%clk 0:00:07.1]} 47... a4 {[%clk 0:00:04.7]} 48. Rc8 {[%clk
0:00:05.1]} 48... a3 {[%clk 0:00:05.2]} 49. Ke3 {[%clk 0:00:05.6]} 49... Ra4
{[%clk 0:00:05.1]} 50. Rd8+ {[%clk 0:00:05.7]} 50... Ke5 {[%clk 0:00:04.9]} 0-1

[Event "Early-Titled-Tuesday-Blitz-February-06-2024"]
[Site "Chess.com"]
[Date "2024.02.06"]
[Round "7"]
[White "KhungThep"]
[Black "FaustinoOro"]
[Result "0-1"]
[WhiteElo "2583"]
[BlackElo "2765"]
[TimeControl "180+1"]
[EndTime "9:18:20 PST"]
[Termination "FaustinoOro won on time"]

1. d4 {[%clk 0:02:58.4]} 1... Nf6 {[%clk 0:02:55.9]} 2. c4 {[%clk 0:02:58.3]}
2... e6 {[%clk 0:02:55.9]} 3. Nf3 {[%clk 0:02:57.5]} 3... b6 {[%clk 0:02:55.2]}
4. Bg5 {[%clk 0:02:55.9]} 4... Bb7 {[%clk 0:02:54.4]} 5. a3 {[%clk 0:02:53.3]}
5... Be7 {[%clk 0:02:51.5]} 6. e3 {[%clk 0:02:53.6]} 6... h6 {[%clk 0:02:51.3]}
7. Bh4 {[%clk 0:02:52.6]} 7... O-O {[%clk 0:02:50.8]} 8. Nc3 {[%clk 0:02:47.1]}
8... d5 {[%clk 0:02:50.3]} 9. Rc1 {[%clk 0:02:32.9]} 9... Nbd7 {[%clk 0:02:48]}
10. cxd5 {[%clk 0:02:29.3]} 10... exd5 {[%clk 0:02:48.1]} 11. Bd3 {[%clk
0:02:23.4]} 11... a6 {[%clk 0:02:46.7]} 12. O-O {[%clk 0:02:18.9]} 12... Re8
{[%clk 0:02:45.8]} 13. Ne5 {[%clk 0:02:07.4]} 13... c5 {[%clk 0:02:41]} 14. Bf5
{[%clk 0:01:41.2]} 14... Nf8 {[%clk 0:02:33.2]} 15. Re1 {[%clk 0:01:37.5]} 15...
Ne6 {[%clk 0:02:27.4]} 16. Qd3 {[%clk 0:01:03.7]} 16... c4 {[%clk 0:02:10]} 17.
Qd1 {[%clk 0:01:01.8]} 17... b5 {[%clk 0:02:09.5]} 18. Qf3 {[%clk 0:00:59.5]}
18... Qd6 {[%clk 0:02:01.4]} 19. Rcd1 {[%clk 0:00:45]} 19... Rad8 {[%clk
0:01:59.3]} 20. Qh3 {[%clk 0:00:31.1]} 20... Bc8 {[%clk 0:01:54.7]} 21. f4
{[%clk 0:00:28.9]} 21... Nc7 {[%clk 0:01:48.8]} 22. Bxc8 {[%clk 0:00:23.1]}
22... Rxc8 {[%clk 0:01:49.7]} 23. g4 {[%clk 0:00:21.7]} 23... Nd7 {[%clk
0:01:48.3]} 24. Bxe7 {[%clk 0:00:18.8]} 24... Rxe7 {[%clk 0:01:48.3]} 25. Kh1
{[%clk 0:00:15.6]} 25... Rce8 {[%clk 0:01:46.8]} 26. e4 {[%clk 0:00:12.3]} 26...
dxe4 {[%clk 0:01:44.9]} 27. Nxe4 {[%clk 0:00:12.6]} 27... Qd5 {[%clk 0:01:45.4]}
28. Qf3 {[%clk 0:00:11.5]} 28... f6 {[%clk 0:01:32.8]} 29. Nc3 {[%clk
0:00:11.8]} 29... Qd6 {[%clk 0:01:26.7]} 30. Ne4 {[%clk 0:00:08.9]} 30... Qb6
{[%clk 0:01:15.7]} 31. Ng6 {[%clk 0:00:07.6]} 31... Rf7 {[%clk 0:01:12]} 32. f5
{[%clk 0:00:07.4]} 32... Rd8 {[%clk 0:01:05.6]} 33. Nc3 {[%clk 0:00:06.4]} 33...
Nf8 {[%clk 0:01:04.5]} 34. Ne7+ {[%clk 0:00:04]} 34... Kh8 {[%clk 0:01:00.5]}
35. d5 {[%clk 0:00:03.6]} 35... Nd7 {[%clk 0:00:51.9]} 36. d6 {[%clk 0:00:03.3]}
36... Ne8 {[%clk 0:00:43]} 37. Nc6 {[%clk 0:00:02.7]} 37... Rc8 {[%clk
0:00:38.4]} 38. Ne7 {[%clk 0:00:01.2]} 38... Rb8 {[%clk 0:00:38.5]} 39. Ned5
{[%clk 0:00:01.3]} 39... Qxd6 {[%clk 0:00:37.2]} 40. Ne4 {[%clk 0:00:01.8]}
40... Qf8 {[%clk 0:00:37.1]} 41. Nf4 {[%clk 0:00:02.1]} 41... Ne5 {[%clk
0:00:36.2]} 42. Qg3 {[%clk 0:00:02.6]} 42... Kh7 {[%clk 0:00:33.5]} 43. Nc3
{[%clk 0:00:02.5]} 43... Nc7 {[%clk 0:00:32.4]} 44. Re2 {[%clk 0:00:01.5]} 44...
Re8 {[%clk 0:00:30.5]} 45. Rde1 {[%clk 0:00:01.6]} 45... Rfe7 {[%clk 0:00:25.7]}
46. Re3 {[%clk 0:00:01.2]} 46... Qf7 {[%clk 0:00:25.1]} 47. R1e2 {[%clk
0:00:01.1]} 47... a5 {[%clk 0:00:25.2]} 48. Ne4 {[%clk 0:00:01.3]} 48... Rd8
{[%clk 0:00:23.7]} 0-1

[Event "Early-Titled-Tuesday-Blitz-February-06-2024"]
[Site "Chess.com"]
[Date "2024.02.06"]
[Round "7"]
[White "tarno17"]
[Black "laskakid"]
[Result "1-0"]
[WhiteElo "2129"]
[BlackElo "2328"]
[TimeControl "180+1"]
[EndTime "9:18:22 PST"]
[Termination "tarno17 won on time"]

1. e4 {[%clk 0:02:59.7]} 1... e5 {[%clk 0:03:00.2]} 2. Nf3 {[%clk 0:02:54.8]}
2... Nc6 {[%clk 0:03:00.7]} 3. Bb5 {[%clk 0:02:54.8]} 3... a6 {[%clk 0:03:00.9]}
4. Ba4 {[%clk 0:02:53.9]} 4... Nf6 {[%clk 0:03:01.4]} 5. O-O {[%clk 0:02:54.2]}
5... d6 {[%clk 0:03:01]} 6. h3 {[%clk 0:02:52]} 6... b5 {[%clk 0:02:54.2]} 7.
Bb3 {[%clk 0:02:51.2]} 7... Na5 {[%clk 0:02:54.4]} 8. d3 {[%clk 0:02:47.2]} 8...
Be7 {[%clk 0:02:51.8]} 9. c3 {[%clk 0:02:44.4]} 9... Nxb3 {[%clk 0:02:51.4]} 10.
Qxb3 {[%clk 0:02:43.5]} 10... O-O {[%clk 0:02:50]} 11. Be3 {[%clk 0:02:37.1]}
11... Re8 {[%clk 0:02:41.5]} 12. Nbd2 {[%clk 0:02:29.4]} 12... c5 {[%clk
0:02:25.7]} 13. a4 {[%clk 0:02:25.7]} 13... Rb8 {[%clk 0:02:24.9]} 14. axb5
{[%clk 0:02:23.7]} 14... axb5 {[%clk 0:02:24.7]} 15. Qc2 {[%clk 0:02:21.9]}
15... Bf8 {[%clk 0:02:20.3]} 16. Ra7 {[%clk 0:02:21.2]} 16... d5 {[%clk
0:02:08.4]} 17. Bg5 {[%clk 0:02:09.2]} 17... Qb6 {[%clk 0:01:51.9]} 18. Rfa1
{[%clk 0:02:08.1]} 18... dxe4 {[%clk 0:01:49.4]} 19. Nxe4 {[%clk 0:01:52.2]}
19... Nxe4 {[%clk 0:01:45.6]} 20. dxe4 {[%clk 0:01:53.1]} 20... h6 {[%clk
0:01:41.6]} 21. Be3 {[%clk 0:01:40.1]} 21... Qc6 {[%clk 0:01:30.5]} 22. Nh4
{[%clk 0:01:05.6]} 22... Bb7 {[%clk 0:01:27.5]} 23. f3 {[%clk 0:01:00.2]} 23...
g6 {[%clk 0:01:22.2]} 24. g4 {[%clk 0:00:39.7]} 24... Rbd8 {[%clk 0:01:08.3]}
25. g5 {[%clk 0:00:30.4]} 25... h5 {[%clk 0:01:04.3]} 26. Ng2 {[%clk 0:00:30.7]}
26... Bc8 {[%clk 0:00:56.1]} 27. Kh2 {[%clk 0:00:28]} 27... Qe6 {[%clk
0:00:52.5]} 28. h4 {[%clk 0:00:15.1]} 28... Qh3+ {[%clk 0:00:51.1]} 29. Kg1
{[%clk 0:00:15.8]} 29... Be6 {[%clk 0:00:39.5]} 30. Qf2 {[%clk 0:00:16]} 30...
Bc4 {[%clk 0:00:36]} 31. Ne1 {[%clk 0:00:15.8]} 31... b4 {[%clk 0:00:24.7]} 32.
Rc7 {[%clk 0:00:08.8]} 32... Bd6 {[%clk 0:00:20.5]} 33. Rc6 {[%clk 0:00:07.8]}
33... Bb5 {[%clk 0:00:19.1]} 34. Rxd6 {[%clk 0:00:08.3]} 34... Rxd6 {[%clk
0:00:18.4]} 35. Bxc5 {[%clk 0:00:09.2]} 35... Rd7 {[%clk 0:00:14.2]} 36. cxb4
{[%clk 0:00:07.4]} 36... Red8 {[%clk 0:00:13.6]} 37. Be3 {[%clk 0:00:08]} 37...
Qe6 {[%clk 0:00:10.6]} 38. Kh2 {[%clk 0:00:06.1]} 38... Qb3 {[%clk 0:00:10.4]}
39. Ng2 {[%clk 0:00:05.5]} 39... Qxb4 {[%clk 0:00:10]} 40. Re1 {[%clk
0:00:04.4]} 40... Qb3 {[%clk 0:00:08.7]} 41. f4 {[%clk 0:00:04.6]} 41... Rd1
{[%clk 0:00:07.2]} 42. fxe5 {[%clk 0:00:04.7]} 42... Rxe1 {[%clk 0:00:06.8]} 43.
Nxe1 {[%clk 0:00:05.6]} 43... Bc6 {[%clk 0:00:05.5]} 44. Qf4 {[%clk 0:00:05.1]}
44... Qd1 {[%clk 0:00:03.7]} 45. Ng2 {[%clk 0:00:04.8]} 45... Qe2 {[%clk
0:00:03.4]} 46. e6 {[%clk 0:00:05]} 46... fxe6 {[%clk 0:00:02.6]} 47. Bc5 {[%clk
0:00:05.2]} 47... Bxe4 {[%clk 0:00:01.2]} 48. Qf6 {[%clk 0:00:04.5]} 1-0

[Event "Early-Titled-Tuesday-Blitz-February-06-2024"]
[Site "Chess.com"]
[Date "2024.02.06"]
[Round "7"]
[White "IsaqueGoncalvesSanto"]
[Black "Massakru"]
[Result "0-1"]
[WhiteElo "1856"]
[BlackElo "2329"]
[TimeControl "180+1"]
[EndTime "9:18:22 PST"]
[Termination "Massakru won by checkmate"]

1. d4 {[%clk 0:02:54.5]} 1... Nf6 {[%clk 0:02:59.6]} 2. c4 {[%clk 0:02:54.1]}
2... e6 {[%clk 0:02:57.5]} 3. Nc3 {[%clk 0:02:53.7]} 3... d5 {[%clk 0:02:57.9]}
4. Bg5 {[%clk 0:02:52.1]} 4... Bb4 {[%clk 0:02:52.8]} 5. e3 {[%clk 0:02:51.8]}
5... dxc4 {[%clk 0:02:47]} 6. Bxc4 {[%clk 0:02:49.6]} 6... h6 {[%clk 0:02:46.9]}
7. Bh4 {[%clk 0:02:39]} 7... g5 {[%clk 0:02:42.3]} 8. Bg3 {[%clk 0:02:38]} 8...
Ne4 {[%clk 0:02:42.2]} 9. Qb3 {[%clk 0:02:31.5]} 9... Nc6 {[%clk 0:02:35]} 10.
Ne2 {[%clk 0:02:27.7]} 10... Qe7 {[%clk 0:02:29.3]} 11. a3 {[%clk 0:02:11.8]}
11... Ba5 {[%clk 0:02:07.2]} 12. O-O {[%clk 0:01:38.5]} 12... Nd2 {[%clk
0:02:06.6]} 13. Qa4 {[%clk 0:01:31.6]} 13... Nxf1 {[%clk 0:02:04.2]} 14. Rxf1
{[%clk 0:01:30.4]} 14... Bxc3 {[%clk 0:01:59.9]} 15. bxc3 {[%clk 0:01:27.4]}
15... Bd7 {[%clk 0:01:59.6]} 16. Qb5 {[%clk 0:01:21.8]} 16... Nxd4 {[%clk
0:01:46.3]} 17. Qxb7 {[%clk 0:01:19.9]} 17... Nxe2+ {[%clk 0:01:45.9]} 18. Bxe2
{[%clk 0:01:18.1]} 18... O-O {[%clk 0:01:44.6]} 19. Qxc7 {[%clk 0:01:10.8]}
19... Rac8 {[%clk 0:01:42.8]} 20. Qb7 {[%clk 0:01:10.1]} 20... Rfe8 {[%clk
0:01:30.8]} 21. Qxa7 {[%clk 0:00:55.8]} 21... Rxc3 {[%clk 0:01:26]} 22. Be5
{[%clk 0:00:55]} 22... Rxa3 {[%clk 0:01:22.5]} 23. Qc7 {[%clk 0:00:51.3]} 23...
Ra2 {[%clk 0:01:08.8]} 24. Bd3 {[%clk 0:00:36.2]} 24... Qd8 {[%clk 0:00:55]} 25.
Qc3 {[%clk 0:00:33.1]} 25... Qc8 {[%clk 0:00:38]} 26. Qd4 {[%clk 0:00:17.4]}
26... Ra4 {[%clk 0:00:34.9]} 27. Qb2 {[%clk 0:00:17.4]} 27... Ra5 {[%clk
0:00:12.6]} 28. Bh8 {[%clk 0:00:16.4]} 28... Kf8 {[%clk 0:00:12]} 29. Qg7+
{[%clk 0:00:15.5]} 29... Ke7 {[%clk 0:00:12.5]} 30. Qf6+ {[%clk 0:00:15.6]}
30... Kd6 {[%clk 0:00:11.4]} 31. Qd4+ {[%clk 0:00:12.7]} 31... Rd5 {[%clk
0:00:11.4]} 32. Be5+ {[%clk 0:00:11.9]} 32... Ke7 {[%clk 0:00:10.9]} 33. Bf6+
{[%clk 0:00:12.2]} 33... Kf8 {[%clk 0:00:11.2]} 34. Bg7+ {[%clk 0:00:12.4]}
34... Kg8 {[%clk 0:00:10.6]} 35. Qf6 {[%clk 0:00:10.8]} 35... e5 {[%clk
0:00:06.1]} 36. Qxh6 {[%clk 0:00:10.2]} 36... f5 {[%clk 0:00:06.3]} 37. Qh8+
{[%clk 0:00:10.2]} 37... Kf7 {[%clk 0:00:06.7]} 38. Qh7 {[%clk 0:00:08.5]} 38...
Ke6 {[%clk 0:00:05]} 39. Qg6+ {[%clk 0:00:08.1]} 39... Ke7 {[%clk 0:00:04.7]}
40. Bf6+ {[%clk 0:00:07.6]} 40... Kd6 {[%clk 0:00:04.7]} 41. Bxg5+ {[%clk
0:00:05]} 41... Re6 {[%clk 0:00:04.3]} 42. Qf7 {[%clk 0:00:04.4]} 42... Rxd3
{[%clk 0:00:04.2]} 43. Rb1 {[%clk 0:00:03.2]} 43... Qb7 {[%clk 0:00:02.7]} 44.
Qf8+ {[%clk 0:00:03.3]} 44... Kd5 {[%clk 0:00:02.3]} 45. e4+ {[%clk 0:00:03]}
45... fxe4 {[%clk 0:00:02.5]} 46. Rxb7 {[%clk 0:00:02]} 46... Rd1# {[%clk
0:00:02.4]} 0-1

[Event "Early-Titled-Tuesday-Blitz-February-06-2024"]
[Site "Chess.com"]
[Date "2024.02.06"]
[Round "7"]
[White "secretsuperstar7"]
[Black "KorolDimitriy75"]
[Result "1-0"]
[WhiteElo "2524"]
[BlackElo "2373"]
[TimeControl "180+1"]
[EndTime "9:18:24 PST"]
[Termination "secretsuperstar7 won by checkmate"]

1. c4 {[%clk 0:03:00.9]} 1... c5 {[%clk 0:03:00.1]} 2. Nc3 {[%clk 0:02:57]} 2...
g6 {[%clk 0:03:00.6]} 3. g3 {[%clk 0:02:46.8]} 3... Bg7 {[%clk 0:03:01]} 4. Bg2
{[%clk 0:02:41.1]} 4... Nc6 {[%clk 0:03:01.6]} 5. e4 {[%clk 0:02:39.9]} 5... Nh6
{[%clk 0:03:02.2]} 6. Nge2 {[%clk 0:02:33.6]} 6... O-O {[%clk 0:03:01.3]} 7. O-O
{[%clk 0:02:33]} 7... d6 {[%clk 0:03:01.4]} 8. d3 {[%clk 0:02:33.1]} 8... f5
{[%clk 0:03:01.3]} 9. a3 {[%clk 0:02:29]} 9... e5 {[%clk 0:02:57.5]} 10. Rb1
{[%clk 0:02:07.5]} 10... f4 {[%clk 0:02:49.6]} 11. f3 {[%clk 0:02:01.3]} 11...
g5 {[%clk 0:02:40.7]} 12. g4 {[%clk 0:01:58.3]} 12... Be6 {[%clk 0:02:14]} 13.
b4 {[%clk 0:01:57.1]} 13... b6 {[%clk 0:02:13.9]} 14. Nd5 {[%clk 0:01:55.7]}
14... Nf7 {[%clk 0:02:05.8]} 15. Qa4 {[%clk 0:01:46.3]} 15... Nd4 {[%clk
0:02:03.9]} 16. Nxd4 {[%clk 0:01:43.9]} 16... exd4 {[%clk 0:02:04.8]} 17. bxc5
{[%clk 0:01:35.9]} 17... dxc5 {[%clk 0:02:05.7]} 18. Qc2 {[%clk 0:01:22.5]}
18... Ne5 {[%clk 0:01:53.7]} 19. a4 {[%clk 0:01:20.8]} 19... h5 {[%clk
0:01:23.3]} 20. h3 {[%clk 0:01:19.9]} 20... Bxd5 {[%clk 0:01:10.8]} 21. cxd5
{[%clk 0:01:06.3]} 21... a5 {[%clk 0:01:01.9]} 22. Ba3 {[%clk 0:01:02.2]} 22...
Qd6 {[%clk 0:00:52]} 23. Qb2 {[%clk 0:00:55.3]} 23... Rab8 {[%clk 0:00:51.2]}
24. Qb5 {[%clk 0:00:50.1]} 24... Qd7 {[%clk 0:00:22.8]} 25. Qb3 {[%clk
0:00:39.7]} 25... Kh7 {[%clk 0:00:21.3]} 26. Kf2 {[%clk 0:00:38]} 26... Kg6
{[%clk 0:00:20.8]} 27. gxh5+ {[%clk 0:00:35.3]} 27... Kxh5 {[%clk 0:00:20.8]}
28. Rh1 {[%clk 0:00:33.8]} 28... Bf6 {[%clk 0:00:20.2]} 29. h4 {[%clk
0:00:32.4]} 29... gxh4 {[%clk 0:00:19.9]} 30. Bh3 {[%clk 0:00:32.4]} 30... Qe7
{[%clk 0:00:18.9]} 31. Rbg1 {[%clk 0:00:27.2]} 31... Qd6 {[%clk 0:00:16.1]} 32.
Bg4+ {[%clk 0:00:23.3]} 32... Kh6 {[%clk 0:00:14.7]} 33. Bc1 {[%clk 0:00:19.5]}
33... Bg5 {[%clk 0:00:13.7]} 34. Bf5 {[%clk 0:00:17.7]} 34... Rg8 {[%clk
0:00:13.3]} 35. Bxf4 {[%clk 0:00:14.6]} 35... Nxd3+ {[%clk 0:00:13.2]} 36. Qxd3
{[%clk 0:00:13.8]} 36... Qxf4 {[%clk 0:00:14.1]} 37. Rg4 {[%clk 0:00:13]} 37...
Qd6 {[%clk 0:00:13]} 38. Qf1 {[%clk 0:00:10]} 38... c4 {[%clk 0:00:10.1]} 39.
Rhxh4+ {[%clk 0:00:08.9]} 39... Bxh4+ {[%clk 0:00:10]} 40. Rxh4+ {[%clk
0:00:09.7]} 40... Kg5 {[%clk 0:00:10.9]} 41. Rg4+ {[%clk 0:00:08.5]} 41... Kf6
{[%clk 0:00:11.1]} 42. Qh3 {[%clk 0:00:08.1]} 42... Rxg4 {[%clk 0:00:09.2]} 43.
Qxg4 {[%clk 0:00:08.3]} 43... d3 {[%clk 0:00:08.7]} 44. Qg6+ {[%clk 0:00:08.3]}
44... Ke7 {[%clk 0:00:08.5]} 45. Qg7+ {[%clk 0:00:08]} 45... Kd8 {[%clk
0:00:08.8]} 46. Qg8+ {[%clk 0:00:08]} 46... Kc7 {[%clk 0:00:08.9]} 47. Qf7+
{[%clk 0:00:08.2]} 47... Kd8 {[%clk 0:00:09.2]} 48. Qg8+ {[%clk 0:00:08.3]}
48... Kc7 {[%clk 0:00:09.5]} 49. Qf7+ {[%clk 0:00:08.6]} 49... Kd8 {[%clk
0:00:09.9]} 50. e5 {[%clk 0:00:06.5]} 50... Qxe5 {[%clk 0:00:09.2]} 51. Qd7#
{[%clk 0:00:06.2]} 1-0